fUSD/lending_fUSD_20240414
["ID","MTS","AMOUNT","RATE_DAILY","PERIOD"]
[322564453,1713066633981,-156.14819749,0.00026888,2]
[322564454,1713066633991,-156.14819749,0.00026888,2]
[322564455,1713066634000,-156.14819749,0.00026888,2]
[322564456,1713066634010,-156.14819749,0.00026888,2]
[322564457,1713066634019,-156.14819749,0.00026888,2]
[322564458,1713066634029,-156.14819749,0.00026888,2]
[322564459,1713066634040,-156.14819749,0.00026888,2]
[322564460,1713066634049,-156.14819749,0.00026888,2]
[322564461,1713066634058,-156.14819749,0.00026888,2]
[322564462,1713066634067,-156.14819749,0.00026888,2]
[322564463,1713066634077,-156.14819749,0.00026888,2]
[322564464,1713066634087,-156.14819749,0.00026888,2]
[322564465,1713066634096,-156.14819749,0.00026888,2]
[322564466,1713066634113,-156.14819749,0.00026888,2]
[322564467,1713066634123,-156.14819749,0.00026888,2]
[322564468,1713066634133,-156.14819749,0.00026888,2]
[322564469,1713066634143,-156.14819749,0.00026888,2]
[322564470,1713066634154,-155.48,0.00026888,2]
[322564471,1713066634164,-156.14819749,0.00026888,2]
[322564472,1713066634173,-156.14819749,0.00026888,2]
[322564473,1713066634182,-156.14819749,0.00026888,2]
[322564474,1713066634191,-156.14819749,0.00026888,2]
[322564475,1713066634201,-156.14819749,0.00026888,2]
[322564476,1713066634212,-156.14819749,0.00026888,2]
[322564477,1713066634222,-156.14819749,0.00026888,2]
[322564478,1713066634236,-156.14819749,0.00026888,2]
[322564479,1713066634246,-156.14819749,0.00026888,2]
[322564480,1713066634255,-156.14819749,0.00026888,2]
[322564481,1713066634264,-156.14819749,0.00026888,2]
[322564482,1713066634274,-156.14819749,0.00026888,2]
[322564483,1713066634283,-156.14819749,0.00026888,2]
[322564484,1713066634293,-156.14819749,0.00026888,2]
[322564485,1713066634302,-156.14819749,0.00026888,2]
[322564486,1713066634312,-156.14819749,0.00026888,2]
[322564487,1713066634322,-156.14819749,0.00026888,2]
[322564488,1713066634331,-156.14819749,0.00026888,2]
[322564489,1713066634340,-156.14819749,0.00026888,2]
[322564490,1713066634353,-156.14819749,0.00026888,2]
[322564491,1713066634362,-156.14819749,0.00026888,2]
[322564492,1713066634371,-210.46523161,0.00026896,3]
[322564493,1713066634380,-150.79765478,0.00026896,3]
[322564494,1713066634390,-79651.11519091,0.00026898,2]
[322564516,1713066637909,-1800.76100558,0.00023211,2]
[322564517,1713066638066,-8199.23899442,0.00023211,2]
[322564518,1713066638076,-156.14819749,0.00026888,2]
[322564519,1713066638086,-156.14819749,0.00026888,2]
[322564520,1713066638096,-156.14819749,0.00026888,2]
[322564521,1713066638106,-156.14819749,0.00026888,2]
[322564522,1713066638115,-156.14819749,0.00026888,2]
[322564523,1713066638125,-156.14819749,0.00026888,2]
[322564524,1713066638134,-156.14819749,0.00026888,2]
[322564525,1713066638144,-156.14819749,0.00026888,2]
[322564526,1713066638153,-156.14819749,0.00026888,2]
[322564527,1713066638163,-156.14819749,0.00026888,2]
[322564528,1713066638172,-156.14819749,0.00026888,2]
[322564529,1713066638182,-156.14819749,0.00026888,2]
[322564530,1713066638191,-156.14819749,0.00026888,2]
[322564531,1713066638201,-156.14819749,0.00026888,2]
[322564532,1713066638212,-156.14819749,0.00026888,2]
[322564533,1713066638222,-156.14819749,0.00026888,2]
[322564534,1713066638234,-156.14819749,0.00026888,2]
[322564535,1713066638244,-156.14819749,0.00026888,2]
[322564536,1713066638253,-156.14819749,0.00026888,2]
[322564537,1713066638263,-156.14819749,0.00026888,2]
[322564538,1713066638273,-156.14819749,0.00026888,2]
[322564539,1713066638283,-156.14819749,0.00026888,2]
[322564540,1713066638293,-156.14819749,0.00026888,2]
[322564542,1713066638303,-9638.4182312,0.00026898,2]
[322564690,1713066639789,-317.5,0.00026898,2]
[322564847,1713066641291,-2417.96473999,0.00023211,2]
[322564849,1713066641300,-156.14819749,0.00026888,2]
[322564851,1713066641310,-156.14819749,0.00026888,2]
[322564853,1713066641320,-156.14819749,0.00026888,2]
[322564855,1713066641330,-156.14819749,0.00026888,2]
[322564856,1713066641339,-113.49062495,0.00026898,2]
[322564857,1713066641351,-1444.8986153,0.00026898,2]
[322564858,1713066641365,-6365.31736674,0.00026898,2]
[322564863,1713066641430,-156.14819749,0.00026888,2]
[322564865,1713066641439,-1311.42622494,0.00026898,2]
[322564868,1713066641451,-905.80297503,0.00026898,2]
[322564871,1713066641471,-338.4255004,0.00026898,2]
[322564873,1713066641482,-1034.268095,0.00026898,2]
[322565043,1713066642968,-156.14819749,0.00026888,2]
[322565045,1713066642977,-156.14819749,0.00026888,2]
[322565047,1713066642986,-156.14819749,0.00026888,2]
[322565049,1713066642995,-156.14819749,0.00026888,2]
[322565051,1713066643006,-156.14819749,0.00026888,2]
[322565053,1713066643015,-2461.61751346,0.00026898,2]
[322565056,1713066643026,-15606.95478086,0.00026898,2]
[322565058,1713066643038,-7607.33743901,0.00026898,2]
[322565060,1713066643049,-2780.08406998,0.00026898,2]
[322565062,1713066643060,-4056.80712839,0.00026898,2]
[322565065,1713066643071,-2335.26013584,0.00026898,2]
[322565067,1713066643083,-1648.70073362,0.00026898,2]
[322565069,1713066643094,-2027.79665794,0.00026898,2]
[322565072,1713066643107,-27097.92732354,0.00026898,2]
[322565074,1713066643118,-388.96002163,0.00026898,2]
[322565076,1713066643130,-16672.45102723,0.00026898,2]
[322565078,1713066643142,-8655.65380928,0.00026898,2]
[322565081,1713066643153,-532.05971586,0.00026898,2]
[322565085,1713066643181,-506.159404,0.00026898,2]
[322565332,1713066645974,-1190.72815,0.00025,2]
[322565334,1713066645983,-5325.66015538,0.00026898,2]
[322565351,1713066646141,-2046.90813698,0.00026898,2]
[322565353,1713066646152,-2450.9403,0.00026898,2]
[322565376,1713066646366,-2460.98823099,0.00026898,2]
[322565527,1713066815479,300.0,0.000199,7]
[322565528,1713066817161,600.0,0.0002,7]
[322565529,1713066819946,900.0,0.000201,7]
[322565530,1713066821948,1200.0,0.000202,7]
[322565531,1713066824099,1600.0,0.000203,7]
[322565532,1713066826119,300.0,0.000204,7]
[322565533,1713066828323,300.0,0.000205,7]
[322565534,1713066830324,300.0,0.000206,7]
[322565535,1713066832442,300.0,0.000207,7]
[322565538,1713066834786,670.0,0.000208,7]
[322565539,1713066838918,1891.81861898,0.00018,2]
[322565546,1713067572769,315.41,0.00018163,2]
[322565586,1713067832098,-299.66504719,0.00020072,2]
[322565589,1713067832110,-2052.8042191,0.00020072,2]
[322565591,1713067832119,-551.36056667,0.00020073,2]
[322565594,1713067832129,-800.0,0.00020081,2]
[322565597,1713067832138,-325.85,0.00020323,2]
[322565599,1713067832147,-315.41,0.00020427,2]
[322565601,1713067832156,-2938.0,0.00020432,2]
[322565603,1713067832165,-506.09212047,0.00020508,2]
[322565604,1713067832174,-4080.94359391,0.00020509,2]
[322565605,1713067832183,-82.57774545,0.0002051,2]
[322565606,1713067832212,-1290.90309334,0.0002051,2]
[322565607,1713067832224,-253.92241788,0.0002051,2]
[322565608,1713067832239,-308.807424,0.0002051,2]
[322565609,1713067832251,-12557.44050712,0.0002051,2]
[322565610,1713067832261,-40846.88734693,0.00020511,2]
[322565611,1713067832270,-304.60569641,0.00020788,2]
[322565612,1713067832280,-158.75,0.00020794,2]
[322565613,1713067832290,-499.99,0.000208,2]
[322565614,1713067832299,-1000.0,0.000208,2]
[322565615,1713067832308,-907.09255953,0.000208,2]
[322565616,1713067832317,-2775.29,0.00020811,2]
[322565617,1713067832326,-673.1,0.00020811,2]
[322565618,1713067832335,-3858.46,0.00020811,2]
[322565619,1713067832344,-189.59,0.00020811,3]
[322565620,1713067832353,-8408.28,0.00020811,2]
[322565621,1713067832362,-98980.4007,0.000209,2]
[322565622,1713067832371,-446.7,0.000209,2]
[322565623,1713067832380,-3840.62154268,0.000209,2]
[322565624,1713067832390,-308.2416034,0.000209,2]
[322565625,1713067832399,-1000.0,0.000209,2]
[322565626,1713067832407,-169.47320593,0.000209,2]
[322565627,1713067832416,-1087.63739354,0.000209,2]
[322565629,1713067832426,-406.94921267,0.000209,2]
[322565630,1713067832435,-406.94921248,0.000209,2]
[322565631,1713067832446,-406.94921248,0.000209,2]
[322565632,1713067832456,-406.94921248,0.000209,2]
[322565633,1713067832465,-406.94921248,0.000209,2]
[322565634,1713067832474,-406.94921248,0.000209,2]
[322565636,1713067832483,-406.94921248,0.000209,2]
[322565638,1713067832492,-13567.03121694,0.0002098,2]
[322565640,1713067832501,-155.2404315,0.00020998,2]
[322565642,1713067832510,-228.8111743,0.00020998,2]
[322565644,1713067832519,-341.70338379,0.00020998,2]
[322565646,1713067832529,-156.34978478,0.00020998,2]
[322565648,1713067832540,-712.53443636,0.00020998,2]
[322565650,1713067832549,-1053.33696157,0.00020998,2]
[322565652,1713067832558,-363.56826722,0.00020998,2]
[322565654,1713067832567,-156.49216687,0.00020998,2]
[322565656,1713067832576,-237.30984916,0.00020998,2]
[322565658,1713067832585,-156.9377342,0.00020998,2]
[322565660,1713067832594,-302.97447136,0.00020998,2]
[322565662,1713067832603,-1066.91066673,0.00020998,2]
[322565664,1713067832618,-246.25872114,0.00020998,2]
[322565666,1713067832628,-155.87053552,0.00020998,2]
[322565668,1713067832637,-493.48153991,0.00020998,2]
[322565670,1713067832647,-377.20223171,0.00020998,2]
[322565672,1713067832660,-300.25169234,0.00020998,2]
[322565674,1713067832669,-23406.71327468,0.00020998,2]
[322565676,1713067832678,-155.27538855,0.00020998,2]
[322565678,1713067832687,-323.7091981,0.00020998,2]
[322565680,1713067832696,-550.7,0.00020998,2]
[322565682,1713067832705,-245.21978849,0.00020998,2]
[322565684,1713067832714,-500.0,0.00020999,2]
[322565686,1713067832723,-562.15829265,0.00020999,2]
[322565688,1713067832734,-500.0,0.00020999,2]
[322565690,1713067832744,-31458.86568531,0.00021,2]
[322565692,1713067832756,-317.65,0.00021,2]
[322565697,1713067832794,-659.47,0.00021,2]
[322565700,1713067832806,-6103.26445465,0.00021,2]
[322565702,1713067832818,-643.59914021,0.00021,2]
[322565704,1713067832831,-1015.83173565,0.00021,2]
[322565708,1713067832860,-1087.44355534,0.00021,2]
[322565710,1713067832872,-341.48088377,0.00021,2]
[322565722,1713067832978,-469.63521555,0.00021,2]
[322565725,1713067832990,-12376.84941022,0.00021,2]
[322565727,1713067833005,-309.31034047,0.00021,2]
[322565737,1713067833085,-4896.99179383,0.00021,2]
[322565739,1713067833096,-833.79793316,0.00021,2]
[322565817,1713067838149,-499.99,0.00020511,2]
[322565818,1713067838158,-907.09255951,0.00020811,2]
[322565819,1713067838167,-406.94921248,0.000209,2]
[322565820,1713067838176,-155.48,0.0002099,2]
[322565821,1713067838186,-155.48,0.0002099,2]
[322565822,1713067838195,-155.48,0.0002099,2]
[322565823,1713067838204,-155.48,0.0002099,2]
[322565824,1713067838213,-155.48,0.0002099,2]
[322565825,1713067838222,-10533536.16689891,0.00021,2]
[322565826,1713067838234,-13141276.2216504,0.00021,2]
[322565827,1713067838245,-33100.29039421,0.00021,2]
[322565829,1713067839792,-7076.96488765,0.00021,2]
[322565831,1713067839807,-16419.07751652,0.00021,2]
[322565845,1713067840209,-3812.33665767,0.000208,2]
[322565846,1713067840326,-224.12492043,0.000208,2]
[322565847,1713067840337,-300.87507957,0.00021,2]
[322565848,1713067840348,-445.5,0.00021,2]
[322565882,1713067843467,-907.09255951,0.00020822,2]
[322565883,1713067843477,-243.25389873,0.000209,2]
[322565884,1713067843489,-163.69531375,0.000209,2]
[322565885,1713067843499,-1272.52158711,0.00021,2]
[322565886,1713067843511,-2171.42621517,0.00021,2]
[322565902,1713067846168,-3176.4,0.00020811,2]
[322565903,1713067846351,-860.06157807,0.00020811,2]
[322565904,1713067846361,-907.09255951,0.00020833,2]
[322565905,1713067846371,-185.44737211,0.000209,2]
[322565906,1713067846380,-406.94921248,0.000209,2]
[322565907,1713067846390,-790.01493802,0.00020999,2]
[322565908,1713067846400,-2746.15962069,0.00021,2]
[322565909,1713067846459,-9833.55481278,0.00021,2]
[322565913,1713068045357,283.86,0.00019252,2]
[322565915,1713068542838,269.66,0.00018888,2]
[322565928,1713069012808,80078.7977114,0.0003,30]
[322565942,1713069032195,-251.27451082,0.00020252,2]
[322565943,1713069032206,-142.62548918,0.00020253,2]
[322565945,1713069032231,-395.96629513,0.00020253,2]
[322565946,1713069032243,-162.92,0.00020255,2]
[322565947,1713069032254,-1070.87956858,0.00020385,2]
[322565948,1713069032363,-886.77043142,0.00020385,2]
[322565949,1713069032373,-161.4947156,0.00020572,2]
[322565950,1713069032383,-1984.01564288,0.000206,2]
[322565951,1713069032393,-640.0,0.00020672,2]
[322565952,1713069032402,-155.54,0.00020691,2]
[322565953,1713069032412,-93.86895672,0.00020713,2]
[322565954,1713069032424,-76.65104328,0.00020713,2]
[322565955,1713069032434,-499.99,0.00020713,2]
[322565956,1713069032444,-270.029337,0.00020822,2]
[322565957,1713069032454,-1000.0,0.00020899,2]
[322565958,1713069032463,-1000.0,0.000209,2]
[322565959,1713069032473,-4932.73824406,0.000209,2]
[322565960,1713069032482,-1822.11837566,0.000209,2]
[322565961,1713069032496,-891.81405594,0.000209,2]
[322565962,1713069032508,-2120.29114441,0.000209,2]
[322565963,1713069032556,-32037.39519327,0.000209,2]
[322565964,1713069032568,-2001.76069057,0.000209,2]
[322565965,1713069032580,-1031.97240509,0.000209,2]
[322565966,1713069032591,-10569.72992466,0.000209,2]
[322565967,1713069032603,-608.24888272,0.000209,2]
[322565968,1713069032624,-2592.57686519,0.000209,2]
[322566162,1713069040565,-6775.96856293,0.000209,2]
[322566163,1713069040577,-3285.175,0.000209,2]
[322566164,1713069040589,-1974.57869956,0.000209,2]
[322566165,1713069040600,-225.4741,0.000209,2]
[322566166,1713069040610,-11207.16520098,0.000209,2]
[322566167,1713069040619,-4312.74602353,0.000209,2]
[322566168,1713069040629,-1266.04881493,0.000209,2]
[322566169,1713069040638,-155.54,0.00020961,2]
[322566170,1713069040648,-157.9,0.0002099,2]
[322566171,1713069040659,-157.9,0.0002099,2]
[322566172,1713069040669,-157.9,0.0002099,2]
[322566173,1713069040678,-157.9,0.0002099,2]
[322566174,1713069040687,-157.9,0.0002099,2]
[322566175,1713069040696,-157.9,0.0002099,2]
[322566176,1713069040705,-157.9,0.0002099,2]
[322566177,1713069040715,-157.9,0.0002099,2]
[322566178,1713069040724,-177.46028583,0.0002099,2]
[322566179,1713069040733,-157.24449267,0.00020998,2]
[322566180,1713069040743,-497.16848565,0.00020999,2]
[322566181,1713069040757,-150.99,0.00020999,2]
[322566182,1713069040767,-150.99,0.00020999,2]
[322566183,1713069040777,-468.6474878,0.00020999,2]
[322566184,1713069040787,-124709.65384897,0.00021,2]
[322566185,1713069040799,-10533536.1668989,0.00021,2]
[322566186,1713069040811,-9958291.78138553,0.00021,2]
[322566187,1713069040821,-1430.30975011,0.00021,2]
[322566188,1713069040831,-1664698.84992469,0.00021,2]
[322566189,1713069040841,-680.12,0.00021,2]
[322566190,1713069040851,-848.56,0.00021,2]
[322566191,1713069041077,-610.58536035,0.00021,2]
[322566192,1713069041089,-1514716.01522972,0.00021,2]
[322566193,1713069041101,-7103.53077201,0.00021,2]
[322566194,1713069041113,-14234.99887379,0.00021,2]
[322566195,1713069041125,-640.91,0.00021,2]
[322566196,1713069041484,-3365.49263738,0.00021,2]
[322566197,1713069041501,-483.16037955,0.00021,2]
[322566198,1713069041513,-2263.43468139,0.00021,2]
[322566244,1713069043584,-323.2397,0.000209,2]
[322566245,1713069043602,-1812.51388384,0.00021,2]
[322566246,1713069043625,-959.49579628,0.00021,2]
[322566247,1713069043647,-2107.88202941,0.00021,2]
[322566248,1713069043667,-50105.53166399,0.00021,2]
[322566253,1713069044939,-532.26841013,0.00021,2]
[322566254,1713069044965,-3209.50202642,0.00021,2]
[322566255,1713069044979,-3125.80918297,0.00021,2]
[322566256,1713069044994,-2487.84105256,0.00021,2]
[322566257,1713069045009,-4546.61596622,0.00021,2]
[322566258,1713069045023,-9819.61599998,0.00021,2]
[322566259,1713069045037,-2322.03631701,0.00021,2]
[322566321,1713069046790,-251.27451082,0.00020999,2]
[322566322,1713069046800,-188.67029498,0.00021,2]
[322566323,1713069046879,-1151.055,0.00021,2]
[322566324,1713069046896,-9414.42938092,0.00021,2]
[322566330,1713069189111,-1021.7,0.00030137,30]
[322566331,1713069189149,-33.3,0.000314,30]
[322566333,1713069408861,208.65,0.00019793,2]
[322566335,1713069430861,243.35,0.00019941,2]
[322566336,1713069431075,243.35,0.00019996,2]
[322566337,1713069528916,2482.7,0.00019637,2]
[322566338,1713069586567,2564.28725932,0.00019947,2]
[322566339,1713069602210,512.0,0.00019628,2]
[322566340,1713069630497,7388.85,0.00019628,2]
[322566341,1713069707843,322.43,0.0001772,2]
[322566342,1713069707950,322.43,0.00019984,2]
[322566343,1713069787018,2341.46,0.00019791,2]
[322566344,1713069856170,170.52,0.00019635,2]
[322566345,1713069892996,219.01,0.00019803,2]
[322566346,1713069893085,219.01,0.00019858,2]
[322566347,1713069893316,219.01,0.00019912,2]
[322566348,1713069893560,219.01,0.00019966,2]
[322566356,1713070080817,1654.8,0.00019621,2]
[322566357,1713070152875,208.65,0.00019622,2]
[322566365,1713070177117,290.18,0.00017718,2]
[322566366,1713070177392,290.18,0.00019982,2]
[322566369,1713070231384,-219.01,0.00020021,2]
[322566370,1713070231395,-219.01,0.00020075,2]
[322566371,1713070231405,-61.98,0.00020129,2]
[322566372,1713070231419,-157.03,0.00020129,2]
[322566373,1713070231428,-219.01,0.00020183,2]
[322566374,1713070231438,-167.0,0.00020224,2]
[322566375,1713070231449,-219.01,0.00020238,2]
[322566376,1713070231459,-150.0,0.00020274,2]
[322566377,1713070231469,-219.01,0.00020292,2]
[322566378,1713070231479,-219.01,0.00020346,2]
[322566379,1713070231490,-219.01,0.00020401,2]
[322566380,1713070231500,-499.99,0.00020401,2]
[322566381,1713070231509,-154.72,0.00020438,2]
[322566382,1713070231518,-154.72,0.00020447,2]
[322566383,1713070231527,-219.01,0.00020455,2]
[322566384,1713070231537,-154.72,0.00020455,2]
[322566385,1713070231546,-154.72,0.00020464,2]
[322566386,1713070231556,-154.72,0.00020472,2]
[322566387,1713070231570,-154.72,0.00020481,2]
[322566388,1713070231580,-154.72,0.00020489,2]
[322566389,1713070231590,-154.72,0.00020498,2]
[322566390,1713070231600,-154.72,0.00020506,2]
[322566391,1713070231609,-219.01,0.00020509,2]
[322566392,1713070231620,-154.72,0.00020515,2]
[322566393,1713070231629,-150.0,0.00020523,2]
[322566394,1713070231639,-154.72,0.00020523,2]
[322566395,1713070231649,-154.72,0.00020532,2]
[322566396,1713070231659,-154.72,0.0002054,2]
[322566397,1713070231669,-6158.835,0.00020543,2]
[322566398,1713070231679,-219.01,0.00020564,2]
[322566399,1713070231689,-219.01,0.00020618,2]
[322566400,1713070231700,-219.01,0.00020672,2]
[322566401,1713070231710,-219.01,0.00020726,2]
[322566402,1713070231720,-192.48,0.00020741,2]
[322566403,1713070231730,-219.01,0.00020781,2]
[322566404,1713070231742,-240.26249338,0.00020788,2]
[322566405,1713070231752,-318.62832766,0.00020788,2]
[322566406,1713070231763,-266.14996478,0.00020788,2]
[322566407,1713070231772,-504.3965,0.000208,2]
[322566408,1713070231782,-1000.0,0.000208,2]
[322566409,1713070231791,-1000.0,0.000208,2]
[322566410,1713070231800,-1000.0,0.000208,2]
[322566411,1713070231810,-1000.0,0.000208,2]
[322566413,1713070231819,-1000.0,0.000208,2]
[322566414,1713070231829,-2289.0936,0.000208,2]
[322566417,1713070231841,-7012.02695955,0.000208,2]
[322566419,1713070231851,-323.13943688,0.000208,2]
[322566421,1713070231862,-448.83156964,0.000208,2]
[322566423,1713070231872,-243.026403,0.00020822,2]
[322566425,1713070231882,-150.0,0.00020834,2]
[322566427,1713070231894,-150.0,0.00020834,2]
[322566429,1713070231904,-150.0,0.00020834,2]
[322566431,1713070231915,-150.0,0.00020834,2]
[322566433,1713070231926,-150.0,0.00020834,2]
[322566436,1713070231937,-150.0,0.00020834,2]
[322566438,1713070231947,-150.0,0.00020834,2]
[322566439,1713070231957,-150.0,0.00020834,2]
[322566442,1713070231969,-219.01,0.00020835,2]
[322566444,1713070231980,-1333.0,0.0002085,3]
[322566446,1713070231991,-150.0,0.00020856,2]
[322566447,1713070232001,-1157.25049225,0.00020898,2]
[322566450,1713070232011,-452.89350428,0.00020898,2]
[322566452,1713070232021,-322.92178856,0.00020898,2]
[322566454,1713070232032,-209.71155946,0.00020898,2]
[322566472,1713070232402,-365.82581204,0.00020899,2]
[322566473,1713070232415,-389057.32034916,0.000209,2]
[322566474,1713070232426,-376.8063937,0.000209,2]
[322566475,1713070232436,-13913.4369,0.000209,2]
[322566476,1713070232446,-155.78834037,0.000209,2]
[322566477,1713070232457,-1618.2848774,0.000209,2]
[322566478,1713070232468,-161.32773537,0.000209,2]
[322566479,1713070232479,-4573.26074924,0.00020979,2]
[322566480,1713070232490,-300.0,0.00020994,2]
[322566481,1713070232501,-1240.66300341,0.00020998,2]
[322566482,1713070232512,-263.63005069,0.00020998,2]
[322566483,1713070232522,-381.78006645,0.00020998,2]
[322566484,1713070232532,-3070.55960045,0.00020998,2]
[322566485,1713070232542,-366.25507447,0.00020998,2]
[322566486,1713070232551,-669.48954408,0.00020998,2]
[322566487,1713070232561,-2047.62177569,0.00020998,2]
[322566488,1713070232572,-4314.61098704,0.00020998,2]
[322566489,1713070232582,-205.92323207,0.00020998,2]
[322566490,1713070232592,-375.85470948,0.00020998,2]
[322566491,1713070232602,-7728.98965993,0.00020998,2]
[322566492,1713070232612,-1043.44393154,0.00020998,2]
[322566493,1713070232623,-6259.45344976,0.00020998,2]
[322566494,1713070232633,-703.92171334,0.00020998,2]
[322566495,1713070232642,-3692.50343558,0.00020998,2]
[322566496,1713070232653,-236.21588443,0.00020998,2]
[322566497,1713070232663,-1443.85403433,0.00020998,2]
[322566498,1713070232673,-214.69956258,0.00020999,2]
[322566499,1713070232683,-269.03603064,0.00020999,2]
[322566500,1713070232693,-4716.5472582,0.00020999,2]
[322566501,1713070232703,-489.50678627,0.00020999,2]
[322566502,1713070232713,-155.0,0.00020999,2]
[322566503,1713070232723,-200.84892334,0.00020999,2]
[322566504,1713070232734,-568486.68268487,0.00021,2]
[322566505,1713070232746,-1504.36619,0.00021,2]
[322566506,1713070232756,-1284390.33915959,0.00021,2]
[322566507,1713070232771,-46029.73605365,0.00021,2]
[322566508,1713070232927,-284.7568382,0.00021,2]
[322566531,1713070237602,-437.76461351,0.00021,2]
[322566532,1713070237614,-1656.84526929,0.00021,2]
[322566533,1713070237714,-97678.66163938,0.00021,2]
[322566534,1713070237724,-610.58536035,0.00021,2]
[322566535,1713070237734,-155.55,0.00021,2]
[322566536,1713070237744,-152.05,0.00021,2]
[322566537,1713070237754,-7311.0,0.00021014,2]
[322566538,1713070237763,-1089.0,0.00021014,2]
[322566539,1713070237771,-3624.0,0.00021014,2]
[322566540,1713070237780,-18785.0,0.00021014,2]
[322566541,1713070237790,-488.0,0.00021108,2]
[322566542,1713070237799,-1223.0,0.000213,2]
[322566543,1713070237809,-3198.0,0.000213,2]
[322566544,1713070237818,-848.56,0.000213,2]
[322566545,1713070237828,-167.0,0.00021337,2]
[322566546,1713070237837,-161.32773537,0.000215,2]
[322566548,1713070237847,-243.026403,0.00021644,2]
[322566550,1713070237856,-261.03,0.00021722,2]
[322566551,1713070237865,-167.11,0.00021726,2]
[322566552,1713070237875,-412.35,0.00021823,2]
[322566553,1713070237884,-412.35,0.00021823,2]
[322566555,1713070237894,-557.17,0.00021823,2]
[322566556,1713070237903,-152.76,0.00021918,2]
[322566557,1713070237912,-250.0,0.00021918,2]
[322566558,1713070237922,-250.0,0.00021918,2]
[322566559,1713070237932,-412.35,0.00021923,2]
[322566560,1713070237942,-784.24043551,0.00022,2]
[322566562,1713070237951,-680.13,0.00022,2]
[322566563,1713070237960,-1000.0,0.00022,2]
[322566565,1713070237969,-241.34824938,0.00022,2]
[322566567,1713070237979,-241.34824938,0.00022,2]
[322566568,1713070237988,-241.34824938,0.00022,2]
[322566570,1713070237998,-241.34824938,0.00022,2]
[322566572,1713070238007,-241.34824938,0.00022,2]
[322566573,1713070238016,-241.34824938,0.00022,2]
[322566575,1713070238026,-241.34824938,0.00022,2]
[322566577,1713070238035,-241.34824938,0.00022,2]
[322566578,1713070238044,-241.34824938,0.00022,2]
[322566580,1713070238054,-241.34824938,0.00022,2]
[322566581,1713070238063,-241.34824938,0.00022,2]
[322566583,1713070238072,-241.34824938,0.00022,2]
[322566585,1713070238081,-241.34824938,0.00022,2]
[322566586,1713070238091,-241.34824938,0.00022,2]
[322566588,1713070238100,-241.34824938,0.00022,2]
[322566590,1713070238110,-241.34824938,0.00022,2]
[322566591,1713070238119,-241.34824938,0.00022,2]
[322566593,1713070238128,-241.34824938,0.00022,2]
[322566595,1713070238138,-241.34824938,0.00022,2]
[322566596,1713070238147,-241.34824938,0.00022,2]
[322566598,1713070238157,-241.34824938,0.00022,2]
[322566600,1713070238166,-241.34824938,0.00022,2]
[322566601,1713070238175,-241.34824938,0.00022,2]
[322566603,1713070238184,-241.34824938,0.00022,2]
[322566605,1713070238193,-241.34824938,0.00022,2]
[322566606,1713070238203,-241.34824938,0.00022,2]
[322566608,1713070238213,-241.34824938,0.00022,2]
[322566610,1713070238222,-241.34824938,0.00022,2]
[322566611,1713070238231,-241.34824938,0.00022,2]
[322566613,1713070238241,-241.34824938,0.00022,2]
[322566615,1713070238253,-241.34824938,0.00022,2]
[322566617,1713070238263,-241.34824938,0.00022,2]
[322566618,1713070238272,-241.34824938,0.00022,2]
[322566619,1713070238281,-241.34824938,0.00022,2]
[322566620,1713070238290,-241.34824938,0.00022,2]
[322566621,1713070238299,-241.34824938,0.00022,2]
[322566622,1713070238311,-258.18346615,0.00022023,2]
[322566623,1713070238325,-512.0,0.00022081,2]
[322566624,1713070238334,-412.35,0.00022123,2]
[322566625,1713070238344,-412.35,0.00022123,2]
[322566626,1713070238354,-412.35,0.00022123,2]